Cogmind - Beta 13 @@@ ROGUE MODE // 2024.04.13 @ 10:27:50 Player: Bearly Playable Result: Destroyed by CP-P5F(R) with Subdweller Laser Performance ------------- Evolutions (0) 0 Regions Visited (2) 400 Robots Destroyed (26) 130 Value Destroyed (592) 592 Prototype IDs (3) 60 Alien Tech Used (0) 0 Bonus (0) 0 TOTAL SCORE: 1182 Bonus ------- None Cogmind --------- Core Integrity 0/250 Matter 258/300 Energy 200/200 System Corruption 1% Temperature Cool (12) Movement Walking (190) Ox1 Location -10/Subcaves Parts ------- > --- POWER (1) -------- Subdweller Power Source > --- PROPULSION (2) --- Aluminum Leg > --- UTILITY (2) ------ Medium Storage Unit Targeting Computer > --- WEAPON (2) ------- Subdweller Machine Gun > --- INVENTORY (10) --- Light Ion Engine Aluminum Leg Aluminum Leg Improved Heat Sink Medium Storage Unit Sensor Array Signal Interpreter Medium Laser Small Laser Light Cannon Peak State ------------ > --- POWER ------------ Subdweller Power Source > --- PROPULSION ------- Aluminum Leg Aluminum Leg > --- UTILITY ---------- Medium Storage Unit Targeting Computer > --- WEAPON ----------- Subdweller Machine Gun Subdweller Shrapnel Launcher > --- INVENTORY -------- Light Ion Engine Aluminum Leg Aluminum Leg Improved Heat Sink Medium Storage Unit Sensor Array Signal Interpreter Medium Laser Small Laser Light Cannon [Rating: 11] Favorites ----------- Power Ion Engine Engine Ion Engine Propulsion Aluminum Leg Leg Aluminum Leg Utility Small Storage Unit Storage Small Storage Unit Processor Targeting Computer Weapon Medium Laser Energy Gun Medium Laser Ballistic Gun Assault Rifle Ballistic Cannon Light Cannon Launcher Subdweller Shrapnel Launcher Build | -11 -10 -10 ------- Run | Yrd Mat Sub Slots Evolved . | . . . Power . | . . . Propulsion . | . . . Utility . | . . . Weapon . | . . . Parts Attached 23 | 7 13 3 Power 4 | 1 2 1 Engine 4 | 1 2 1 Core . | . . . Reactor . | . . . Propulsion 5 | 2 3 . Treads . | . . . Leg 5 | 2 3 . Wheel . | . . . Hover . | . . . Flight . | . . . Utility 3 | 1 2 . Device . | . . . Storage 2 | 1 1 . Processor 1 | . 1 . Hackware . | . . . Protection . | . . . Artifact . | . . . Weapon 11 | 3 6 2 Energy Gun 5 | 2 3 . Energy Cannon . | . . . Ballistic Gun 4 | 1 2 1 Ballistic Cannon 1 | . 1 . Launcher 1 | . . 1 Special Weapon . | . . . Impact Weapon . | . . . Slashing Weapon . | . . . Piercing Weapon . | . . . Special Melee Weapon . | . . . Unidentified Prototypes . | . . . Parts Lost 8 | . 6 2 Power 1 | . 1 . Propulsion 3 | . 2 1 Utility . | . . . Weapon 4 | . 3 1 Highest Loss Streak 3 | . 3 2 To Critical Strikes . | . . . Average Slot Usage (%) 89 | . 87 100 Engine 12 | . 11 14 Leg 27 | . 27 28 Storage 14 | . 14 14 Processor 7 | . 6 14 Energy Gun 11 | . 13 1 Ballistic Gun 10 | . 9 14 Ballistic Cannon 2 | . 3 . Launcher 1 | . . 12 Naked Turns . | . . . Heaviest Build 27 | 12 20 27 Greatest Support 20 | 20 20 20 Greatest Overweight (x) 3 | 3 1 1 Average Overweight (x) . | . . . Largest Inventory Capacity 10 | 8 10 10 Average Capacity 8 | 7 8 10 Most Carried 10 | 3 10 10 Average Carried 6 | 1 5 9 Final Capacity 10 | 8 10 10 Final Carried 10 | 2 9 10 Class Distribution -------------------- 86% | Mutant 13% | Scavenger-Mutant Dominant Class ---------------- Mutant | -10/Materials Scavenger-Mutant | -10/Subcaves Resources | -11 -10 -10 ----------- Run | Yrd Mat Sub Matter Collected 581 | 213 328 40 Remotely . | . . . Salvage Created 1179 | . 1179 . Parts 45 | . 45 . Haulers Intercepted 1 | . 1 . Recyclers Shooed 8 | . 8 . Parts Field Recycled . | . . . Retrieved Matter . | . . . Parts Self-Destructed 4 | . . 4 Prevented . | . . . Kills | -11 -10 -10 ------- Run | Yrd Mat Sub Combat Hostiles Destroyed 17 | . 17 . Melee 1 | . 1 . Guns 14 | . 14 . Cannons 2 | . 2 . Classes Destroyed 6 | . 6 . Worker 2 | . 2 . Hauler 1 | . 1 . Recycler 5 | . 5 . Watcher 1 | . 1 . Swarmer 3 | . 3 . Grunt 14 | . 14 . Best Kill Streak 3 | . 3 . Combat Bots Only 3 | . 3 . Max Kills in Single Turn 2 | . 2 . Gunslinging . | . . . Exploded . | . . . Melee 1 | . 1 . Uniques/NPCs Destroyed . | . . . Combat | -11 -10 -10 -------- Run | Yrd Mat Sub Hostile Shots Fired 124 | . 105 19 Missed 24 | . 22 2 Damage Taken 1422 | . 1056 366 Core 253 | . 194 59 Absorbed by Shields . | . . . Core Remaining (%) 100 | 100 . . Volleys Fired 92 | . 86 6 Largest 2 | . 2 2 Hottest 85 | . 85 70 Shots Fired 165 | . 157 8 Gun 150 | . 144 6 Cannon 13 | . 13 . Launcher 2 | . . 2 Special . | . . . Kinetic 81 | . 73 8 Thermal 53 | . 53 . Explosive . | . . . Electromagnetic 31 | . 31 . Robot Hit Streak 12 | . 12 3 Robot Miss Streak 4 | . 4 1 Penetration Max . | . . . Secondary Targets 2 | . 2 . Max Gunslinging Chain 1 | . 1 . Shots Hit Robots 100 | . 99 1 Core Hits 47 | . 45 2 Critical Kills 1 | . 1 . Critical Parts Destroyed . | . . . Critical Strikes 7 | . 7 . Burn 5 | . 5 . Destroy 1 | . 1 . Corrupt 1 | . 1 . Melee Attacks . | . . . Impact . | . . . Slashing . | . . . Piercing . | . . . Sneak Attacks . | . . . Combat Hostiles . | . . . Follow-up Attacks . | . . . Damage Inflicted 1456 | . 1390 66 Guns 1160 | . 1126 34 Cannons 183 | . 183 . Explosions 91 | . 59 32 Melee . | . . . Ramming 22 | . 22 . Kinetic 681 | . 615 66 Thermal 499 | . 499 . Explosive . | . . . Electromagnetic 254 | . 254 . Impact . | . . . Slashing . | . . . Piercing . | . . . Highest Corruption 1 | . 1 1 Average Corruption 1 | . 1 1 Corruption Purged . | . . . Corruption Blocked . | . . . Effects 5 | . 5 . Message Errors 2 | . 2 . Matter Fused 1 | . 1 . Heat Flow Errors 1 | . 1 . Data Loss (minor) 1 | . 1 . Overload Shots . | . . . Overflow Damage 6 | . 6 . Projectiles . | . . . Explosions 6 | . 6 . Melee . | . . . Knockbacks 2 | . 2 . Impact . | . . . Kinetic 1 | . 1 . Secondary 1 | . 1 . Self-Inflicted Damage 71 | . 71 . Shots 2 | . 2 . Rammed . | . . . Targets Rammed 6 | . 6 . Kicked 6 | . 6 . Crushed . | . . . Highest Temperature 240 | . 240 1 Average Temperature 51 | . 51 1 Received Heat Transfer 546 | . 462 84 Effects 1 | . 1 . Energy Bleed 1 | . 1 . Siege Activations . | . . . Robots Corrupted . | . . . Combat Hostiles . | . . . Parts Fried . | . . . Impact Corruptions . | . . . Robots Melted . | . . . Combat Hostiles . | . . . Parts Melted 1 | . 1 . Heat Transferred 1753 | . 1753 . Parts Sabotaged . | . . . Parts Stolen . | . . . Parts Stripped . | . . . Power Chain Reactions 2 | . 2 . Alert | -11 -10 -10 ------- Run | Yrd Mat Sub Peak Influence 273 | . 273 . Initial . | . . . Average 113 | . 120 . Maximum Alert Level 1 | . 1 . Low Security (%) 90 | 100 89 . Level 1 9 | . 10 . Level 2 . | . . . Level 3 . | . . . Level 4 . | . . . Level 5 . | . . . High Security . | . . . Max Security . | . . . Squads Dispatched 4 | . 4 . Investigation 3 | . 3 . Extermination . | . . . Reinforcement 1 | . 1 . Assault . | . . . Garrison . | . . . Intercept . | . . . Searches Triggered . | . . . Construction Impeded . | . . . Haulers Reinforced . | . . . Active Scanning Responses . | . . . Cargo Convoy Interrupts . | . . . Stealth | -11 -10 -10 --------- Run | Yrd Mat Sub Distress Signals 1 | . 1 . Communications Jammed . | . . . Distress Signals . | . . . Times Spotted 32 | . 21 11 Peak Tracking Total 6 | . 3 6 Tactical Retreats . | . . . Traps | -11 -10 -10 ------- Run | Yrd Mat Sub Traps Triggered 2 | . 2 . Indirectly . | . . . Trap Hack Attempts . | . . . Triggered . | . . . Disarmed . | . . . Reprogrammed . | . . . Reused . | . . . Traps Extracted . | . . . Installed . | . . . Triggered . | . . . Machines | -11 -10 -10 ---------- Run | Yrd Mat Sub Machines Disabled 1 | . 1 . Max in Single Turn 1 | . 1 . Machines Repaired . | . . . Machines Dismantled . | . . . Machines Sabotaged . | . . . Overloaded Fab Kills . | . . . Hacking | -11 -10 -10 --------- Run | Yrd Mat Sub Machines Accessed 7 | . 7 . Terminals 6 | . 6 . Fabricators . | . . . Repair Stations . | . . . Recycling Units 1 | . 1 . Scanalyzers . | . . . Garrison Access . | . . . Total Hacks 11 | . 11 . Successful 9 | . 9 . Failed 2 | . 2 . Catastrophic 1 | . 1 . Database Lockouts . | . . . Manual . | . . . Terminals 10 | . 10 . Fabricators . | . . . Repair Stations . | . . . Recycling Units 1 | . 1 . Scanalyzers . | . . . Garrison Access . | . . . Terminal Hacks 8 | . 8 . Record 2 | . 2 . Prototype ID Bank 2 | . 2 . Locate Traps 1 | . 1 . Hauler Manifests 1 | . 1 . Registered Prototypes 1 | . 1 . Zone Layout 1 | . 1 . Fabricator Hacks . | . . . Repair Station Hacks . | . . . Recycling Unit Hacks 1 | . 1 . Report Inventory 1 | . 1 . Scanalyzer . | . . . Garrison Access Hacks . | . . . Unauthorized Hacks . | . . . Terminals . | . . . Fabricators . | . . . Repair Stations . | . . . Recycling Units . | . . . Scanalyzers . | . . . Garrison Access . | . . . Data Cores Recovered . | . . . Used . | . . . Hacking Detections 4 | . 4 . Full Trace Events 2 | . 2 . Feedback Events . | . . . Feedback Blocked . | . . . Robot Schematics Acquired . | . . . Robots Built . | . . . Authchips . | . . . Time . | . . . Total Robot Build Rating . | . . . Part Schematics Acquired . | . . . Parts Built . | . . . Authchips . | . . . Time . | . . . Total Part Build Rating . | . . . Parts Repaired . | . . . Time . | . . . Parts Recycled . | . . . Recycled Matter . | . . . Retrieved Matter . | . . . Retrieved Components . | . . . Parts Scanalyzed . | . . . Part Schematics Acquired . | . . . Parts Damaged . | . . . Bothacking | -11 -10 -10 ------------ Run | Yrd Mat Sub Used RIF Installer . | . . . Robots Hacked . | . . . Non-combat . | . . . Combat . | . . . Robot Hacks Applied . | . . . Relay Couplers Released . | . . . Fabnet Peak Effective % . | . . . Robots Rewired . | . . . Allies Hacked . | . . . Hacks Repelled . | . . . Allies | -11 -10 -10 -------- Run | Yrd Mat Sub Total Allies . | . . . Largest Group . | . . . Highest-Rated Group . | . . . Highest-Rated Ally . | . . . Total Orders . | . . . Ally Attacks . | . . . Total Damage . | . . . Kills . | . . . Allies Corrupted . | . . . Allies Melted . | . . . Intel | -11 -10 -10 ------- Run | Yrd Mat Sub Robot Analysis Total . | . . . Derelict Logs Recovered 1 | . . 1 Drone Launches . | . . . Drone Recoveries . | . . . Exploration | -11 -10 -10 ------------- Run | Yrd Mat Sub Turns Passed 1778 | 85 1427 266 Spaces Moved 1135 | 59 937 139 Core 9 | 9 . . Treads . | . . . Legs 1126 | 50 937 139 Wheels . | . . . Hover . | . . . Flight . | . . . Fastest Speed 50 | 50 120 120 Average Speed 127 | 123 120 177 Slowest Speed 200 | 200 190 190 Overloaded Moves . | . . . Propulsion Burnouts . | . . . Robots Hopped . | . . . Cave-ins Triggered . | . . . Exploration Rate (%) 33 | 4 89 8 Regions Visited 2 Branch Regions 1 Pre-discovered Areas 1 | . . 1 Known Exits Taken . | . . . Unknown Exits Taken 2 | 1 1 . Scrap Searched . | . . . Spaces Dug . | . . . Terrain Destroyed 31 | . 3 28 Melee . | . . . Projectile . | . . . AOE 31 | . 3 28 Terrain Rammed . | . . . Walls Destroyed . | . . . Machines Disabled . | . . . Actions | -11 -10 -10 --------- Run | Yrd Mat Sub Total 1303 | 68 1084 151 Wait 23 | . 23 . Move 1133 | 58 936 139 Hop . | . . . Pick Up 20 | 3 16 1 Fast Attach 7 | 5 1 1 Attach 7 | 1 6 . Detach . | . . . Swap 9 | 1 6 2 Drop 6 | . 4 2 Fire 92 | . 86 6 Melee . | . . . Ram . | . . . Kick 6 | . 6 . Crush . | . . . Escape Stasis . | . . . Rewire . | . . . Trap . | . . . Miscellaneous . | . . . Route ------- -11/Scrapyard -10/Materials (discovered 5 exits: [*Mat x2] / [*Min x2] / [*Sub]) -10/Subcaves History --------- Turn | Location | Event 15 | -11/Scrapyard | Discovered new exit (range 15) 86 | -11/Scrapyard | Entered Materials 220 | -10/Materials | Discovered new exit (range 16) 315 | -10/Materials | Build established: Mutant 430 | -10/Materials | Discovered new exit (range 9) 675 | -10/Materials | Lost 3 parts (1n2w) 827 | -10/Materials | Core integrity fell below 50% 899 | -10/Materials | Discovered new exit (range 16) 1075 | -10/Materials | Discovered new exit (range 15) 1492 | -10/Materials | Discovered new exit (range 11) 1513 | -10/Materials | Entered Subcaves 1516 | -10/Subcaves | Ambushed by Subdwellers from Twisted Machinery 1728 | -10/Subcaves | Ambushed by swarm of Subdwellers 1771 | -10/Subcaves | Core integrity fell below 20% 1776 | -10/Subcaves | Disturbed a concealed Subdweller 1779 | -10/Subcaves | Destroyed by CP-P5F(R) with Subdweller Laser Last Messages --------------- 01551_ Acquired 4 matter. 01554_ Dropped Ion Engine. 01557_ Acquired 26 matter. 01624_ Acquired derelict log, extracted data. World map updated: -9/Materials. 01656_ 8K-LF7(u) tweaks Twisted Machinery. A mess of Twisted Machinery falls from the cavern ceiling. 8T-GFN(R) comes tumbling into view. 01728_ C9-1YE(h): "The Subs are coming!" 01729_ 8T-GFN(R) destroyed. 01732_ 4P-QGP(R) emerges from the Twisted Machinery. 01734_ 09-65S(R) emerges from the Twisted Machinery. 01734_ CP-P5F(R) emerges from the Twisted Machinery. 01735_ JV-MD7(R) emerges from the Twisted Machinery. 01763_ Aluminum Leg fries itself beyond repair. 01767_ Particle Gun fries itself beyond repair. 01771_ Aluminum Leg destroyed. 01776_ S9-VYA(R) angrily emerges from the Twisted Machinery. 01777_ Sub. Shrapnel Launcher destroyed. 01779_ L7-WY6(R) affixes Scrap Shield Fragment to Scrap Shield. Map ----- +----------------------------------------------------+ | ?????????????????????????????????????????????????? | | ?????????????????????????????????????????????????? | | ?????????????????????????????????????????????????? | | ?????????????????????????????????????????????????? | | ?????????????????????????????????????????????????? | | ?????????????????????????????????????????????????? | | ?????????????????????????????????????????????????? | | ?????????????????????????????????????????????????? | | ?????????????????????????????????????????????????? | | ?????????????????????????????????????????????????? | | ?????????????????????????????????????????????????? | | ?????????????????????????????????????????????????? | | ?????????????????????????????????????????????????? | | ?????????????????????????????????????????????????? | | ?????????????????????????????????????????????????? | | ?????????????????????????????????????????????????? | | ?????????????????????????????????????????????????? | | ?????????????????????????????????????????????????? | | ?????????????????????????????????????????????????? | | ??????????????????????????##?????????????????????? | | ?????????????????????????? ##????????????????????? | | ?????????????????????????? #????????????????????? | | ?????????????????????##### #??######????????????? | | ????????????????????##<$<# #;&;; # #????????? | | ????????????????????#<$<<# ;R&; ; ????????? | | ????????????????????#$R$&@ !%* ????????? | | ????????????????????#<